fUSD/lending_fUSD_20240530
["ID","MTS","AMOUNT","RATE_DAILY","PERIOD"]
[328228222,1717077034317,-500.0,0.00033294,7]
[328228223,1717077034326,-500.0,0.00033294,7]
[328228224,1717077034335,-500.0,0.00033294,7]
[328228225,1717077034344,-611.17,0.00033294,7]
[328228226,1717077034353,-500.0,0.00033294,7]
[328228227,1717077034362,-500.0,0.00033294,7]
[328228228,1717077034371,-500.0,0.00033294,7]
[328228229,1717077034380,-500.0,0.00033294,7]
[328228230,1717077034389,-647.51,0.00033294,7]
[328228231,1717077034400,-500.0,0.00033294,7]
[328228232,1717077034409,-500.0,0.00033294,7]
[328228233,1717077034418,-595.13,0.00033294,7]
[328228234,1717077034427,-500.0,0.00033294,7]
[328228235,1717077034436,-500.0,0.00033294,7]
[328228236,1717077034446,-500.0,0.00033294,7]
[328228237,1717077034455,-500.0,0.00033294,7]
[328228238,1717077034464,-500.0,0.00033294,7]
[328228239,1717077034473,-500.0,0.00033294,7]
[328228240,1717077034485,-500.0,0.00033294,7]
[328228241,1717077034494,-500.0,0.00033294,7]
[328228242,1717077034504,-500.0,0.00033294,7]
[328228243,1717077034512,-500.0,0.00033294,7]
[328228244,1717077034521,-500.0,0.00033294,7]
[328228245,1717077034530,-743.35,0.00033294,7]
[328228246,1717077034540,-500.0,0.00033294,7]
[328228247,1717077034550,-500.0,0.00033294,7]
[328228248,1717077034559,-500.0,0.00033294,7]
[328228249,1717077034568,-500.0,0.00033294,7]
[328228250,1717077034578,-576.76,0.00033294,7]
[328228251,1717077034587,-500.0,0.00033294,7]
[328228252,1717077034597,-500.0,0.00033294,7]
[328228253,1717077034606,-547.05,0.00033294,7]
[328228254,1717077034615,-500.0,0.00033294,7]
[328228255,1717077034625,-546.34,0.00033294,7]
[328228256,1717077034634,-500.0,0.00033294,7]
[328228257,1717077034644,-500.0,0.00033294,7]
[328228258,1717077034657,-450.84489612,0.00033294,7]
[328228259,1717077034672,-49.15510388,0.00033294,7]
[328228260,1717077034682,-500.0,0.00033294,7]
[328228261,1717077034692,-289.14089612,0.00033294,7]
[328228262,1717077034704,-210.85910388,0.00033294,7]
[328228263,1717077034714,-500.0,0.00033294,7]
[328228264,1717077034724,-500.0,0.00033294,7]
[328228265,1717077034736,-500.0,0.00033294,7]
[328228266,1717077034745,-241.15386106,0.00033294,7]
[328228267,1717077034758,-258.84613894,0.00033294,7]
[328228268,1717077034767,-28.52724608,0.00033295,7]
[328228269,1717077034779,-259.1,0.00033295,7]
[328228308,1717077038540,-300.001004,0.000329,2]
[328228310,1717077038552,-699.998996,0.000329,2]
[328228312,1717077038561,-394.32513033,0.00033198,10]
[328228314,1717077038571,-394.32513033,0.00033198,10]
[328228316,1717077038581,-500.0,0.00033294,7]
[328228318,1717077038591,-500.0,0.00033294,7]
[328228320,1717077038601,-624.0,0.00033294,7]
[328228322,1717077038611,-212.37275392,0.00033295,7]
[328228324,1717077038620,-612.19,0.00033295,7]
[328228326,1717077038630,-640.04,0.00033295,7]
[328228328,1717077038640,-500.0,0.00033295,7]
[328228330,1717077038650,-602.19,0.00033295,7]
[328228332,1717077038659,-500.0,0.00033295,7]
[328228334,1717077038668,-604.13,0.00033295,7]
[328228335,1717077038678,-500.0,0.00033295,7]
[328228337,1717077038687,-500.0,0.00033295,7]
[328228339,1717077038696,-642.76,0.00033295,7]
[328228341,1717077038706,-622.71,0.00033295,7]
[328228343,1717077038716,-500.0,0.00033295,7]
[328228345,1717077038725,-500.0,0.00033295,7]
[328228347,1717077038737,-500.0,0.00033295,7]
[328228349,1717077038746,-500.0,0.00033295,7]
[328228351,1717077038756,-500.0,0.00033295,7]
[328228353,1717077038766,-500.0,0.00033295,7]
[328228355,1717077038775,-500.0,0.00033295,7]
[328228357,1717077038785,-500.0,0.00033295,7]
[328228359,1717077038796,-500.0,0.00033295,7]
[328228361,1717077038805,-500.0,0.00033295,7]
[328228363,1717077038815,-500.0,0.00033295,7]
[328228364,1717077038824,-500.0,0.00033295,7]
[328228365,1717077038834,-500.0,0.00033295,7]
[328228366,1717077038843,-500.0,0.00033295,7]
[328228367,1717077038853,-500.0,0.00033295,7]
[328228368,1717077038862,-559.39,0.00033295,7]
[328228369,1717077038872,-500.0,0.00033295,7]
[328228370,1717077038882,-533.58,0.00033295,7]
[328228371,1717077038891,-624.2,0.00033295,7]
[328228372,1717077038900,-589.63,0.00033295,7]
[328228373,1717077038910,-500.0,0.00033295,7]
[328228374,1717077038919,-600.01,0.00033295,7]
[328228375,1717077038929,-500.0,0.00033295,7]
[328228376,1717077038938,-186.98,0.00033295,7]
[328228377,1717077038948,-500.0,0.00033295,7]
[328228378,1717077038957,-500.0,0.00033295,7]
[328228379,1717077038967,-521.35,0.00033295,7]
[328228380,1717077038976,-500.0,0.00033295,7]
[328228381,1717077038990,-556.08,0.00033295,7]
[328228382,1717077038999,-502.92,0.00033295,7]
[328228383,1717077039009,-500.0,0.00033295,7]
[328228384,1717077039018,-500.0,0.00033295,7]
[328228385,1717077039027,-500.0,0.00033295,7]
[328228386,1717077039037,-500.0,0.00033295,7]
[328228387,1717077039046,-500.0,0.00033295,7]
[328228388,1717077039058,-500.0,0.00033295,7]
[328228389,1717077039067,-500.0,0.00033295,7]
[328228390,1717077039076,-500.0,0.00033295,7]
[328228391,1717077039086,-570.13494412,0.00033295,7]
[328228392,1717077039095,-500.0,0.00033295,7]
[328228393,1717077039105,-500.0,0.00033295,7]
[328228394,1717077039115,-500.0,0.00033295,7]
[328228395,1717077039124,-500.0,0.00033295,7]
[328228396,1717077039133,-500.0,0.00033295,7]
[328228397,1717077039145,-500.0,0.00033295,7]
[328228398,1717077039155,-598.08,0.00033295,7]
[328228399,1717077039165,-500.0,0.00033295,7]
[328228400,1717077039175,-500.0,0.00033295,7]
[328228401,1717077039184,-500.0,0.00033295,7]
[328228402,1717077039193,-500.0,0.00033295,7]
[328228403,1717077039203,-500.0,0.00033295,7]
[328228404,1717077039213,-500.0,0.00033295,7]
[328228405,1717077039222,-500.0,0.00033295,7]
[328228406,1717077039235,-500.0,0.00033295,7]
[328228407,1717077039244,-500.0,0.00033295,7]
[328228409,1717077039253,-500.0,0.00033295,7]
[328228411,1717077039263,-593.59,0.00033295,7]
[328228413,1717077039272,-500.0,0.00033295,7]
[328228415,1717077039282,-500.0,0.00033295,7]
[328228417,1717077039292,-500.0,0.00033295,7]
[328228419,1717077039302,-500.0,0.00033295,7]
[328228421,1717077039311,-500.0,0.00033295,7]
[328228422,1717077039320,-500.0,0.00033295,7]
[328228423,1717077039329,-500.0,0.00033295,7]
[328228424,1717077039338,-500.0,0.00033295,7]
[328228425,1717077039348,-500.0,0.00033295,7]
[328228426,1717077039357,-500.0,0.00033295,7]
[328228427,1717077039366,-500.0,0.00033295,7]
[328228428,1717077039376,-500.0,0.00033295,7]
[328228429,1717077039385,-500.0,0.00033295,7]
[328228430,1717077039395,-500.0,0.00033295,7]
[328228431,1717077039405,-500.0,0.00033295,7]
[328228432,1717077039415,-500.0,0.00033295,7]
[328228433,1717077039424,-500.0,0.00033295,7]
[328228434,1717077039434,-500.0,0.00033295,7]
[328228435,1717077039444,-601.82,0.00033295,7]
[328228436,1717077039454,-500.0,0.00033295,7]
[328228437,1717077039463,-500.0,0.00033295,7]
[328228438,1717077039473,-500.0,0.00033295,7]
[328228439,1717077039484,-500.0,0.00033295,7]
[328228440,1717077039494,-500.0,0.00033295,7]
[328228441,1717077039504,-558.57,0.00033295,7]
[328228442,1717077039513,-500.0,0.00033295,7]
[328228443,1717077039521,-500.0,0.00033295,7]
[328228444,1717077039531,-500.0,0.00033295,7]
[328228445,1717077039540,-500.0,0.00033295,7]
[328228446,1717077039549,-500.0,0.00033295,7]
[328228447,1717077039558,-170.76306044,0.00033295,7]
[328228448,1717077039567,-500.0,0.00033295,7]
[328228449,1717077039576,-636.08827406,0.00033295,7]
[328228450,1717077039585,-500.0,0.00033295,7]
[328228451,1717077039595,-500.0,0.00033295,7]
[328228452,1717077039605,-564.35,0.00033295,7]
[328228453,1717077039614,-500.0,0.00033295,7]
[328228454,1717077039623,-500.0,0.00033295,7]
[328228455,1717077039633,-500.0,0.00033295,7]
[328228456,1717077039643,-500.0,0.00033295,7]
[328228457,1717077039653,-500.0,0.00033295,7]
[328228458,1717077039662,-500.0,0.00033295,7]
[328228459,1717077039671,-500.0,0.00033295,7]
[328228460,1717077039680,-500.0,0.00033295,7]
[328228461,1717077039690,-500.0,0.00033295,7]
[328228462,1717077039699,-500.0,0.00033295,7]
[328228463,1717077039709,-633.4,0.00033295,7]
[328228464,1717077039718,-500.0,0.00033295,7]
[328228465,1717077039728,-500.0,0.00033295,7]
[328228466,1717077039740,-500.0,0.00033295,7]
[328228467,1717077039750,-500.0,0.00033295,7]
[328228468,1717077039760,-160.55,0.00033295,7]
[328228469,1717077039770,-500.0,0.00033295,7]
[328228470,1717077039780,-500.0,0.00033295,7]
[328228471,1717077039789,-500.0,0.00033295,7]
[328228472,1717077039799,-500.0,0.00033295,7]
[328228473,1717077039809,-500.0,0.00033295,7]
[328228474,1717077039819,-500.0,0.00033295,7]
[328228475,1717077039828,-500.0,0.00033295,7]
[328228476,1717077039838,-500.0,0.00033295,7]
[328228477,1717077039848,-500.0,0.00033295,7]
[328228478,1717077039857,-500.0,0.00033295,7]
[328228479,1717077039867,-500.0,0.00033295,7]
[328228480,1717077039876,-500.0,0.00033295,7]
[328228481,1717077039886,-617.23,0.00033295,7]
[328228482,1717077039896,-500.0,0.00033295,7]
[328228483,1717077039905,-500.0,0.00033295,7]
[328228484,1717077039918,-500.0,0.00033295,7]
[328228485,1717077039928,-500.0,0.00033295,7]
[328228486,1717077039938,-500.0,0.00033295,7]
[328228487,1717077039947,-500.0,0.00033295,7]
[328228488,1717077039956,-523.19,0.00033295,7]
[328228489,1717077039966,-500.0,0.00033295,7]
[328228490,1717077039975,-500.0,0.00033295,7]
[328228491,1717077039986,-500.0,0.00033295,7]
[328228492,1717077039995,-500.0,0.00033295,7]
[328228493,1717077040004,-500.0,0.00033295,7]
[328228494,1717077040012,-526.85,0.00033295,7]
[328228495,1717077040022,-500.0,0.00033295,7]
[328228496,1717077040032,-500.0,0.00033295,7]
[328228497,1717077040041,-500.0,0.00033295,7]
[328228498,1717077040051,-500.0,0.00033295,7]
[328228499,1717077040061,-500.0,0.00033295,7]
[328228500,1717077040074,-500.0,0.00033295,7]
[328228501,1717077040083,-500.0,0.00033295,7]
[328228502,1717077040093,-500.0,0.00033295,7]
[328228503,1717077040102,-500.0,0.00033295,7]
[328228504,1717077040113,-640.27,0.00033295,7]
[328228505,1717077040122,-500.0,0.00033295,7]
[328228506,1717077040132,-500.0,0.00033295,7]
[328228507,1717077040142,-500.0,0.00033295,7]
[328228508,1717077040151,-500.0,0.00033295,7]
[328228509,1717077040162,-514.23898255,0.00033295,7]
[328228510,1717077040171,-500.0,0.00033295,7]
[328228511,1717077040180,-500.0,0.00033295,7]
[328228512,1717077040190,-500.0,0.00033295,7]
[328228513,1717077040199,-500.0,0.00033295,7]
[328228514,1717077040208,-500.0,0.00033295,7]
[328228515,1717077040217,-449.07889427,0.00033295,7]
[328228516,1717077040226,-500.0,0.00033295,7]
[328228517,1717077040238,-500.0,0.00033295,7]
[328228518,1717077040247,-500.0,0.00033295,7]
[328228520,1717077040256,-500.0,0.00033295,7]
[328228522,1717077040265,-500.0,0.00033295,7]
[328228524,1717077040275,-500.0,0.00033295,7]
[328228526,1717077040284,-500.0,0.00033295,7]
[328228528,1717077040294,-500.0,0.00033295,7]
[328228530,1717077040304,-500.0,0.00033295,7]
[328228532,1717077040313,-500.0,0.00033295,7]
[328228534,1717077040322,-500.0,0.00033295,7]
[328228536,1717077040332,-500.0,0.00033295,7]
[328228538,1717077040341,-500.0,0.00033295,7]
[328228540,1717077040351,-500.0,0.00033295,7]
[328228542,1717077040360,-515.26,0.00033295,7]
[328228544,1717077040370,-500.0,0.00033295,7]
[328228545,1717077040379,-500.0,0.00033295,7]
[328228548,1717077040390,-500.0,0.00033295,7]
[328228549,1717077040399,-500.0,0.00033295,7]
[328228551,1717077040409,-500.0,0.00033295,7]
[328228553,1717077040419,-500.0,0.00033295,7]
[328228555,1717077040428,-513.53,0.00033295,7]
[328228557,1717077040438,-500.0,0.00033295,7]
[328228558,1717077040448,-500.0,0.00033295,7]
[328228559,1717077040458,-500.0,0.00033295,7]
[328228560,1717077040467,-500.0,0.00033295,7]
[328228561,1717077040477,-500.0,0.00033295,7]
[328228562,1717077040488,-500.0,0.00033295,7]
[328228563,1717077040497,-504.56,0.00033295,7]
[328228564,1717077040507,-500.0,0.00033295,7]
[328228565,1717077040516,-500.0,0.00033295,7]
[328228566,1717077040526,-500.0,0.00033295,7]
[328228567,1717077040535,-500.0,0.00033295,7]
[328228568,1717077040544,-596.59,0.00033295,7]
[328228569,1717077040554,-500.0,0.00033295,7]
[328228570,1717077040564,-500.0,0.00033295,7]
[328228571,1717077040573,-500.0,0.00033295,7]
[328228572,1717077040582,-500.0,0.00033295,7]
[328228573,1717077040592,-500.0,0.00033295,7]
[328228574,1717077040601,-500.0,0.00033295,7]
[328228575,1717077040611,-548.76,0.00033295,7]
[328228576,1717077040620,-500.0,0.00033295,7]
[328228577,1717077040630,-500.0,0.00033295,7]
[328228578,1717077040639,-500.0,0.00033295,7]
[328228579,1717077040648,-500.0,0.00033295,7]
[328228580,1717077040658,-500.0,0.00033295,7]
[328228581,1717077040667,-500.0,0.00033295,7]
[328228582,1717077040677,-500.0,0.00033295,7]
[328228583,1717077040686,-567.24,0.00033295,7]
[328228584,1717077040695,-500.0,0.00033295,7]
[328228585,1717077040704,-500.0,0.00033295,7]
[328228586,1717077040714,-500.0,0.00033295,7]
[328228587,1717077040723,-500.0,0.00033295,7]
[328228588,1717077040734,-500.0,0.00033295,7]
[328228589,1717077040743,-591.46190302,0.00033295,7]
[328228590,1717077040753,-500.0,0.00033295,7]
[328228591,1717077040762,-500.0,0.00033295,7]
[328228592,1717077040771,-500.0,0.00033295,7]
[328228593,1717077040781,-500.0,0.00033295,7]
[328228594,1717077040790,-500.0,0.00033295,7]
[328228595,1717077040800,-500.0,0.00033295,7]
[328228596,1717077040809,-500.0,0.00033295,7]
[328228597,1717077040818,-500.0,0.00033295,7]
[328228598,1717077040828,-500.0,0.00033295,7]
[328228599,1717077040837,-632.68,0.00033295,7]
[328228600,1717077040847,-500.0,0.00033295,7]
[328228601,1717077040856,-500.0,0.00033295,7]
[328228602,1717077040865,-500.0,0.00033295,7]
[328228603,1717077040874,-500.0,0.00033295,7]
[328228604,1717077040883,-1170.54,0.00033295,7]
[328228605,1717077040893,-500.0,0.00033295,7]
[328228606,1717077040903,-500.0,0.00033295,7]
[328228607,1717077040912,-500.0,0.00033295,7]
[328228608,1717077041064,-500.0,0.00033295,7]
[328228609,1717077041074,-500.0,0.00033295,7]
[328228610,1717077041084,-500.0,0.00033295,7]
[328228611,1717077041093,-500.0,0.00033295,7]
[328228612,1717077041104,-500.0,0.00033295,7]
[328228613,1717077041114,-500.0,0.00033295,7]
[328228614,1717077041123,-500.0,0.00033295,7]
[328228615,1717077041132,-524.37,0.00033295,7]
[328228616,1717077041143,-500.0,0.00033295,7]
[328228617,1717077041153,-500.0,0.00033295,7]
[328228618,1717077041162,-500.0,0.00033295,7]
[328228619,1717077041172,-624.58,0.00033295,7]
[328228620,1717077041181,-233.69264926,0.00033295,7]
[328228621,1717077041191,-500.0,0.00033295,7]
[328228622,1717077041200,-500.0,0.00033295,7]
[328228623,1717077041209,-500.0,0.00033295,7]
[328228624,1717077041218,-489.04673382,0.00033295,7]
[328228626,1717077041228,-500.0,0.00033295,7]
[328228627,1717077041240,-500.0,0.00033295,7]
[328228629,1717077041249,-500.0,0.00033295,7]
[328228631,1717077041258,-503.79,0.00033295,7]
[328228633,1717077041267,-500.0,0.00033295,7]
[328228635,1717077041276,-500.0,0.00033295,7]
[328228636,1717077041285,-500.0,0.00033295,7]
[328228637,1717077041295,-500.0,0.00033295,7]
[328228638,1717077041304,-500.0,0.00033295,7]
[328228639,1717077041313,-617.93,0.00033295,7]
[328228640,1717077041323,-500.0,0.00033295,7]
[328228641,1717077041332,-523.28,0.00033295,7]
[328228642,1717077041341,-500.0,0.00033295,7]
[328228643,1717077041351,-500.0,0.00033295,7]
[328228644,1717077041360,-500.0,0.00033295,7]
[328228645,1717077041370,-638.47,0.00033295,7]
[328228646,1717077041379,-500.0,0.00033295,7]
[328228647,1717077041389,-4483.0675751,0.00033296,2]
[328228648,1717077041398,-657.9857993,0.00033296,2]
[328228649,1717077041408,-3378.7223556,0.00033296,2]
[328228650,1717077041417,-11172.1561519,0.00033296,2]
[328228651,1717077041427,-155.5998633,0.00033298,2]
[328228652,1717077041436,-664.78792874,0.00033298,4]
[328228653,1717077041445,-2331.50342214,0.00033298,4]
[328228654,1717077041454,-536.37517664,0.00033298,4]
[328228655,1717077041464,-155.0,0.00033298,4]
[328228656,1717077041473,-513.39495988,0.00033298,4]
[328228657,1717077041485,-150.01,0.00033299,2]
[328228658,1717077041494,-819.647458,0.00033299,4]
[328228659,1717077041502,-374.06608,0.00033299,2]
[328228660,1717077041511,-2093.15634521,0.00033299,20]
[328228661,1717077041520,-155.0,0.000333,5]
[328228662,1717077041529,-299.58469868,0.000333,5]
[328228663,1717077041539,-9972.52939354,0.000333,9]
[328228664,1717077041548,-90467.65345143,0.000333,5]
[328228665,1717077041595,-314.8300229,0.000333,5]
[328228666,1717077041607,-258.04820423,0.000333,5]
[328228667,1717077041618,-261171.32733873,0.000333,5]
[328228668,1717077041630,-81376.7880241,0.000333,5]
[328228669,1717077041641,-166118.5503536,0.000333,5]
[328228670,1717077041661,-685.54,0.000333,5]
[328228671,1717077041672,-17936.93518799,0.000333,5]
[328228672,1717077041688,-6479.33439024,0.000333,5]
[328228673,1717077041699,-496.816951,0.000333,5]
[328228674,1717077041710,-4852.6012,0.000333,5]
[328228675,1717077041723,-15385.39769668,0.000333,5]
[328228676,1717077041736,-854.32737745,0.000333,5]
[328228677,1717077041747,-1522.70096409,0.000333,5]
[328228678,1717077041758,-2856.78357856,0.000333,5]
[328228679,1717077041832,-1912.56570009,0.00028859,2]
[328228680,1717077041842,-500.0,0.00033295,7]
[328228681,1717077041851,-500.0,0.00033295,7]
[328228682,1717077041861,-38918.6299569,0.00033296,2]
[328228683,1717077041869,-6834.67829567,0.000333,5]
[328228684,1717077041882,-716.8094612,0.000333,5]
[328228685,1717077041893,-5418.28405322,0.000333,5]
[328228686,1717077041904,-6372.61532773,0.000333,5]
[328228687,1717077041915,-11562.1006639,0.000333,5]
[328228688,1717077041927,-1425.81175738,0.000333,5]
[328228689,1717077041938,-303.27304,0.000333,5]
[328228690,1717077041949,-1641.30252,0.000333,5]
[328228691,1717077041963,-60176.41910016,0.000333,5]
[328228692,1717077041978,-774.040005,0.000333,5]
[328228693,1717077041991,-6131.5,0.000333,5]
[328228694,1717077042001,-348.03132241,0.000333,5]
[328228695,1717077042013,-3364.15,0.000333,5]
[328228701,1717077043543,-394.32513033,0.00033199,10]
[328228702,1717077043552,-500.0,0.00033295,7]
[328228703,1717077043562,-31.80188952,0.00033295,7]
[328228704,1717077043696,-468.19811048,0.00033295,7]
[328228705,1717077043706,-517.03487054,0.00033299,4]
[328228706,1717077043717,-453.8567141,0.000333,5]
[328228707,1717077043730,-621.92876496,0.000333,5]
[328228708,1717077043745,-33052.21316881,0.000333,5]
[328228709,1717077043860,-14133.06195613,0.000333,5]
[328228710,1717077043874,-14006.4,0.000333,5]
[328228711,1717077043886,-9563.42588814,0.000333,5]
[328228712,1717077043897,-2667831.47387616,0.000333,5]
[328228713,1717077044046,-500.0,0.00032457,2]
[328228714,1717077044057,-155.0,0.00033299,4]
[328228715,1717077044070,-653.97457036,0.000333,5]
[328228716,1717077044083,-1176.64081656,0.000333,5]
[328228717,1717077044094,-5893.04789687,0.000333,5]
[328228718,1717077044106,-5989.10310729,0.000333,5]
[328228719,1717077044117,-583.44127134,0.000333,5]
[328228720,1717077044129,-83516.6078,0.000333,5]
[328228721,1717077044143,-25399.67717759,0.000333,5]
[328228722,1717077044157,-7396.67920382,0.000333,5]
[328228723,1717077044168,-11181.9688041,0.000333,5]
[328228724,1717077044180,-2308.92452143,0.000333,5]
[328228725,1717077044191,-11034.52248,0.000333,5]
[328228726,1717077044203,-7430.47128099,0.000333,5]
[328228727,1717077044215,-3319.4994788,0.000333,5]
[328228728,1717077044227,-1435.1158842,0.000333,5]
[328228729,1717077044296,-423.96701383,0.00029968,2]
[328228731,1717077044306,-175.13,0.00033294,7]
[328228733,1717077044316,-1133.17798617,0.000333,5]
[328228735,1717077044329,-2634.89825997,0.000333,5]
[328228743,1717077046686,-509.40705301,0.000261,3]
[328228744,1717077046697,-629.27928532,0.000261,3]
[328228745,1717077046709,-498.31366167,0.000261,3]
[328228746,1717077046719,-755.5871,0.00033195,2]
[328228747,1717077046728,-500.0,0.00033294,7]
[328228748,1717077046738,-546.532745,0.00033299,4]
[328228749,1717077046750,-441.00561757,0.000333,5]
[328228750,1717077046761,-3793.10883274,0.000333,5]
[328228751,1717077046915,-719.18682302,0.000333,5]
[328228752,1717077046927,-462.1772013,0.000333,5]
[328228753,1717077046938,-534.16021158,0.000333,5]
[328228754,1717077046949,-1437.21815789,0.000333,5]
[328228755,1717077046960,-3539.9,0.000333,5]
[328228756,1717077046971,-463.08892426,0.000333,5]
[328228757,1717077046981,-1603.20601043,0.000333,5]
[328228758,1717077047003,-689.86294699,0.00028859,2]
[328228759,1717077047014,-906.0995901,0.00028859,2]
[328228760,1717077047022,-378.0759961,0.000333,5]
[328228761,1717077047033,-514.43428425,0.000333,5]
[328228762,1717077047171,-626.58997502,0.000333,5]
[328228763,1717077047182,-2263.98757461,0.000333,5]
[328228764,1717077047194,-2732.761759,0.000333,5]
[328228765,1717077047204,-1396.76750727,0.000333,5]
[328228766,1717077047216,-18750.0,0.000333,5]
[328228767,1717077047227,-823.08503546,0.000333,5]
[328228768,1717077130404,8145.93,0.00031424,60]
[328228769,1717077196994,25000.0,0.00034045,10]
[328228770,1717077426158,25000.0,0.00034172,10]
[328228773,1717077600666,25000.0,0.00034172,10]
[328228776,1717077706111,211.59,0.00027592,120]
[328228777,1717077706318,211.59,0.00030658,120]
[328228783,1717077997976,155.42,0.00013973,2]
[328228785,1717078011172,-1645.09938755,0.00015639,2]
[328228786,1717078011195,-784.97137019,0.00015639,2]
[328228787,1717078011215,-689.79801188,0.0001564,2]
[328228793,1717078231633,-346.425,0.00015037,2]
[328228796,1717078231818,-2666.8394568,0.00015037,2]
[328228797,1717078231828,-1181.35301246,0.00015038,2]
[328228798,1717078231838,-1299.84451728,0.00015038,2]
[328228799,1717078231848,-657.69774283,0.00015038,2]
[328228800,1717078231858,-201.27489753,0.00015039,2]
[328228801,1717078231869,-7527.02870314,0.00015039,2]
[328228802,1717078231879,-155.0,0.00015039,2]
[328228803,1717078231888,-3095.3767325,0.00015039,2]
[328228804,1717078231899,-8875.11996859,0.0001504,2]
[328228805,1717078231908,-452.55518761,0.00015062,2]
[328228806,1717078231917,-2190.0729251,0.00015062,2]
[328228807,1717078231927,-410.51505764,0.00015063,2]
[328228808,1717078231937,-155.0,0.00015063,2]
[328228809,1717078231946,-1486.109679,0.00015064,2]
[328228810,1717078231956,-1216.58199942,0.00015139,2]
[328228811,1717078231966,-155.0,0.0001514,2]
[328228812,1717078231975,-35421.47615814,0.0001514,2]
[328228813,1717078231988,-1834.0,0.00015141,2]
[328228814,1717078231998,-751.80430157,0.00015141,2]
[328228815,1717078232008,-1045.54236016,0.00015141,2]
[328228816,1717078232018,-5572.40323607,0.00015141,2]
[328228817,1717078232027,-150.0,0.0001522,2]
[328228818,1717078232037,-499.99,0.0001522,2]
[328228819,1717078232047,-2608.07457883,0.00015327,2]
[328228820,1717078232056,-299.99,0.00015327,2]
[328228821,1717078232065,-289.51600348,0.0001564,2]
[328228822,1717078232075,-1000.0,0.00015824,2]
[328228823,1717078232085,-164.06481566,0.00016018,2]
[328228824,1717078232095,-150.99,0.00016577,2]
[328228825,1717078232104,-3089.57,0.00016577,2]
[328228826,1717078232114,-999.99,0.00016578,2]
[328228827,1717078232124,-210.0,0.00016742,2]
[328228828,1717078232133,-9063.80850095,0.00017169,2]
[328228829,1717078232143,-978.10442759,0.00017257,2]
[328228830,1717078232152,-293.0,0.00018416,2]
[328228831,1717078232162,-16230.753,0.00019452,2]
[328228832,1717078232171,-411.0,0.00020258,2]
[328228833,1717078232180,-402.42,0.00022593,2]
[328228834,1717078232191,-1000.0,0.000235,2]
[328228836,1717078232200,-250.0,0.0002357,2]
[328228839,1717078232210,-160.96,0.00023584,2]
[328228841,1717078232219,-1423.71,0.0002365,3]
[328228843,1717078232229,-250.0,0.00023907,2]
[328228845,1717078232243,-160.96,0.00023993,2]
[328228847,1717078232252,-503.9,0.00024146,3]
[328228849,1717078232261,-23900.0,0.00024156,2]
[328228851,1717078232270,-554.66,0.00024244,2]
[328228852,1717078232279,-1007.79,0.00024374,3]
[328228853,1717078232288,-3153.91,0.00024384,2]
[328228854,1717078232297,-160.96,0.00024403,2]
[328228855,1717078232307,-3718.25,0.00024465,2]
[328228856,1717078232316,-211.59,0.00024527,2]
[328228857,1717078232326,-870.9,0.00024547,2]
[328228858,1717078232335,-200.0,0.00024557,2]